[Event "German Bundesliga 2022-23"]
[Site "Germany"]
[Date "2002.01.09"]
[Round "4"]
[White "Stojanovic, Dalibor"]
[Black "Dardha, Daniel"]
[Result "1/2-1/2"]
[ECO "B15"]
[WhiteElo "2446"]
[BlackElo "2609"]
[Annotator "TA"]
[PlyCount "160"]
[EventDate "2022.10.21"]
[EventType "team-tourn"]
[EventCountry "GER"]
[SourceTitle "playchess.com"]
[Source "ChessBase"]
[SourceQuality "1"]
[TimeControl "40/6000+30:3000+30"]

{[%evp 10,160,35,14,14,10,18,12,8,0,14,8,2,6,22,0,25,16,25,20,26,16,37,0,0,0,0,0,0,-16,-22,-16,-15,-21,-27,-60,-52,-52,-54,-75,-7,-67,-55,-46,-39,-47,-20,-70,-58,-72,0,0,0,0,-7,-10,0,0,0,0,0,-100,-100,-104,-95,-140,-140,-143,-143,-143,-143,-147,-140,-140,0,-147,-124,-141,-141,-141,-140,-140,-140,-140,-140,-150,-140,-140,-124,-140,-124,-124,-124,-124,0,-124,-124,-140,-116,-130,-123,-124,-124,-131,-93,-93,-93,-93,-93,-93,-93,-93,-42,-79,-42,-93,-93,-93,-93,-93,0,-93,0,-8,-8,-8,0,-11,-11,-19,-12,-49,-8,-8,-8,-8,-8,-8,-8,-8,-8,-8,-8,-8,-8,-8,-8,-8,-8,-10,0,0,0]} 1. e4 {[%emt 0:01:00]} c6 {[%emt 0:01:00]} 2. d4 {[%emt 0:00:30]} d5 {[%emt 0:00:00]} 3. Nd2 {[%emt 0:02:30]} dxe4 {[%emt 0:01:00]} 4. Nxe4 {[%emt 0:00:30]} Nf6 {[%emt 0:00:00]} 5. Nxf6+ {[%emt 0:00:30]} exf6 {[%emt 0:00:00]} 6. Be3 {[%emt 0:02:30]} Bd6 {[%emt 0:03:30] B15: Caro-Kann: 3 Nc3: 3...g6 and 3...dxe4 4 Nxe4 Nf6 5 Nxf6+ exf6.} 7. Bd3 {[%emt 0:01:30]} Na6 {[%emt 0:01:30]} 8. a3 {[%emt 0:04:30] Against Nb4} O-O {[%emt 0:03:30]} 9. Ne2 {[%emt 0:01:30] [#]} Nc7 $146 {[%emt 0:04:30]} ({Predecessor:} 9... Qc7 10. c4 c5 11. d5 Re8 12. Qd2 Bd7 13. h3 Qc8 14. Qc2 h6 15. O-O Nc7 {1-0 (41) Toewe,W-Traeger,S Germany 1992}) 10. c4 {[%emt 0:05:30]} Re8 {[%emt 0:04:30]} 11. O-O {[%emt 0:03:30]} Be6 {[%emt 0:04:30]} 12. Nf4 {[%emt 0:09:30]} g6 {[%emt 0:03:30]} 13. Qf3 {[%emt 0:06:30]} f5 {[%emt 0:01:30]} 14. Rad1 {[%emt 0:09:30]} Qf6 {[%emt 0:04:30]} 15. b4 {[%emt 0:04:30]} Rad8 {[%emt 0:05:30]} 16. b5 {[%emt 0:18:30]} cxb5 {[%emt 0:23:30]} (16... Bxa3 17. bxc6 bxc6 18. Qxc6 $16) 17. c5 {[%emt 0:00:30]} Bxf4 {[%emt 0:05:30]} 18. Bxf4 {[%emt 0:00:30]} Rxd4 {[%emt 0:01:30]} 19. Qg3 {[%emt 0:06:30] [#] And now Bg5 would win.} ({Much worse is} 19. Bxc7 Bd5 20. Qh3 Rh4 21. Bxb5 (21. Qg3 Rg4 $17) 21... Rxh3 22. Bxe8 Bc4 $17) 19... Rxf4 {[%emt 0:03:30]} 20. Qxf4 {[%emt 0:00:30]} Nd5 {[%emt 0:00:00]} 21. Qd2 {[%emt 0:02:30]} a6 {[%emt 0:04:00]} 22. Rfe1 {[%emt 0:04:30]} Rc8 {[%emt 0:01:30]} 23. Rc1 {[%emt 0:03:30] Inhibits Nc3.} Qd4 {[%emt 0:01:30]} 24. Red1 {[%emt 0:00:30]} Kg7 {[%emt 0:04:30]} ({Better is} 24... Rxc5 $17 {next ...b6 is good for Black.} 25. Rxc5 Qxc5) 25. Be2 {[%emt 0:01:30] Against b6} (25. Qe1 $11 Qb2 26. Be2) 25... Qxd2 $15 {[%emt 0:04:30]} 26. Rxd2 {[%emt 0:00:00]} Nb6 $1 {[%emt 0:01:30]} 27. Bf3 {[%emt 0:09:34]} Nc4 {[%emt 0:00:30]} 28. Rd4 {[%emt 0:00:04]} ({White should try} 28. Rdd1 $11) 28... Rc7 {[%emt 0:08:36]} 29. a4 {[%emt 0:02:14]} Kf6 {[%emt 0:03:42]} (29... bxa4 $17 30. Rcxc4 Bxc4 31. Rxc4 b5) 30. axb5 $11 {[%emt 0:01:42]} axb5 {[%emt 0:00:02]} 31. Rb1 {[%emt 0:01:36]} Rxc5 {[%emt 0:06:01]} 32. Bxb7 {[%emt 0:00:04]} Ke7 {[%emt 0:00:52]} 33. h3 {[%emt 0:02:38]} g5 {[%emt 0:03:31]} 34. Ba6 {[%emt 0:01:47]} Nd6 {[%emt 0:00:25]} 35. Rxd6 {[%emt 0:00:15]} Kxd6 $17 {[%emt 0:00:07]} 36. Bxb5 $11 {[%emt 0:00:02][%mdl 4096] Endgame KRB-KRB} h5 {[%emt 0:01:23][%cal Bh7h5,Bh5h4][%mdl 32]} 37. f3 {[%emt 0:02:36]} h4 {[%emt 0:00:27]} 38. Be2 {[%emt 0:00:15]} Rc2 {[%emt 0:00:24]} 39. Kf1 {[%emt 0:01:04]} Ra2 {[%emt 0:01:20]} 40. Rb8 {[%emt 0:02:43]} Ra1+ {[%emt 0:00:35]} 41. Kf2 {[%emt 0:50:04]} Ra2 {[%emt 0:00:35] Hoping for ...Bc4.} 42. Kf1 $1 {[%emt 0:00:00]} Ra4 {[%emt 0:03:30]} 43. Rb2 {[%emt 0:00:00]} Kc5 {[%emt 0:03:30]} 44. Kf2 {[%emt 0:00:00]} Kd4 {[%emt 0:02:30]} 45. Rd2+ {[%emt 0:00:00] [#]} Ke5 $1 {[%emt 0:00:30]} 46. Rb2 {[%emt 0:00:00]} Bd5 {[%emt 0:00:00]} 47. Bd1 {[%emt 0:00:00]} Ra3 {[%emt 0:01:00]} 48. Be2 {[%emt 0:00:00]} f6 {[%emt 0:00:30]} 49. Rd2 {[%emt 0:00:00]} Rc3 {[%emt 0:01:30]} 50. Rb2 {[%emt 0:00:00]} Kd4 {[%emt 0:02:30]} 51. Rd2+ {[%emt 0:00:00]} Ke5 {[%emt 0:00:30]} 52. Rb2 $1 {[%emt 0:00:00]} Bb3 {[%emt 0:00:30]} 53. Rd2 {[%emt 0:00:00]} Ba4 {[%emt 0:02:30]} 54. Rb2 {[%emt 0:00:00]} Bc6 {[%emt 0:00:30]} 55. Ra2 {[%emt 0:00:00]} f4 {[%emt 0:01:30]} 56. Rb2 {[%emt 0:00:00]} f5 {[%emt 0:00:30]} 57. Ra2 {[%emt 0:00:00]} Bb7 {[%emt 0:00:30]} 58. Bf1 {[%emt 0:00:00]} Bd5 {[%emt 0:00:30]} 59. Rb2 {[%emt 0:00:00]} Ra3 {[%emt 0:03:30]} 60. Be2 {[%emt 0:00:00]} Bc6 {[%emt 0:01:30]} (60... Ra1 $17 61. Bb5 Be6 62. Re2+ Kf6) 61. Rc2 {[%emt 0:00:00]} Bd7 {[%emt 0:00:30]} 62. Rb2 {[%emt 0:00:00]} ({White should play} 62. Bb5 $15 Be6 63. Bc4) 62... Rc3 $17 {[%emt 0:01:30]} 63. Ra2 {[%emt 0:00:00]} Be6 {[%emt 0:00:30]} 64. Rb2 {[%emt 0:00:00]} Bd5 {[%emt 0:02:30]} (64... Kf6 $17 65. Rb6 Ke5 66. Rb5+ Kd6) 65. Rd2 {[%emt 0:00:00]} (65. Bf1 $1 $11) 65... g4 {[%emt 0:01:30]} (65... Bf7 $17 66. Rb2 Bb3) 66. hxg4 {[%emt 0:00:00]} fxg4 {[%emt 0:00:30]} 67. fxg4 {[%emt 0:00:00]} Rg3 {[%emt 0:00:30]} 68. Bf1 {[%emt 0:00:00]} Rxg4 {[%emt 0:00:30]} 69. Rb2 {[%emt 0:00:00]} Rg3 {[%emt 0:01:30]} 70. Rb8 {[%emt 0:00:00]} f3 {[%emt 0:12:06]} (70... Rg8 {simplifies} 71. Rxg8 Bxg8 72. Be2 Be6) 71. gxf3 {[%emt 0:00:00] The position is equal.} Rxf3+ {[%emt 0:00:07]} 72. Kg1 {[%emt 0:00:00]} h3 {[%emt 0:01:42][%cal Oh3h2]} 73. Rb2 $1 {[%emt 0:00:00] Against h2+} Be4 {[%emt 0:02:33]} 74. Rf2 {[%emt 0:00:00]} Rc3 {[%emt 0:00:13]} 75. Kh2 {[%emt 0:00:00]} Bf5 {[%emt 0:00:10]} 76. Ba6 {[%emt 0:00:00]} Kf6 {[%emt 0:00:22]} 77. Bb7 {[%emt 0:00:00]} Kg5 {[%emt 0:00:08]} 78. Bd5 {[%emt 0:00:39]} Rc7 {[%emt 0:00:44]} 79. Ba8 {[%emt 0:00:15]} Rc2 {[%emt 0:00:57]} 80. Rxc2 {[%emt 0:00:04]} Bxc2 {[%emt 0:00:03] Whites escaped into a draw.   Weighted Error Value: White=0.12 (very precise) /Black=0.12 (very precise)} 1/2-1/2

[Event "German Bundesliga 2022-23"]
[Site "Germany"]
[Date "2002.01.09"]
[Round "4"]
[White "Kuznecovs, Nikita"]
[Black "Hausrath, Daniel"]
[Result "0-1"]
[ECO "E62"]
[WhiteElo "2307"]
[BlackElo "2461"]
[Annotator "TA"]
[PlyCount "142"]
[EventDate "2022.10.21"]
[EventType "team-tourn"]
[EventCountry "GER"]
[SourceTitle "playchess.com"]
[Source "ChessBase"]
[SourceQuality "1"]
[TimeControl "40/6000+30:3000+30"]

{[%evp 18,142,19,8,33,31,22,21,20,-12,-10,-2,14,-33,-37,-104,-41,-72,-40,-52,-64,-100,-16,-14,-30,-30,-8,-32,-47,-39,0,-124,-96,-91,-116,-101,-57,-58,-58,-77,-72,-72,-77,-83,-75,-131,-143,-151,-146,-132,-155,-141,-142,-156,-156,-165,-170,-156,-92,-92,-92,-92,-92,-92,-92,-92,-92,-92,-92,-92,-92,-96,-97,-102,-102,-148,-155,-155,0,-102,-102,-125,-62,-55,-62,-112,-112,-112,-112,-132,-130,-125,-130,-129,-129,-192,-175,-254,-240,-330,-324,-362,-347,-343,-319,-332,-302,-340,-329,-336,-297,-325,-262,-736,-525,-504,-460,-447,-432,-757,-757,-755,-755,-741,-740,-757,-741]} 1. Nf3 {[%emt 0:01:00]} Nf6 {[%emt 0:01:00]} 2. g3 {[%emt 0:02:30]} g6 {[%emt 0:00:30]} 3. c4 {[%emt 0:00:30]} Bg7 {[%emt 0:00:00]} 4. Bg2 {[%emt 0:01:30]} O-O {[%emt 0:00:00]} 5. O-O {[%emt 0:00:00]} d6 {[%emt 0:00:30]} 6. d4 {[%emt 0:04:00]} c6 {[%emt 0:00:30]} 7. Nc3 {[%emt 0:01:30]} Qa5 {[%emt 0:00:30]} 8. h3 {[%emt 0:08:30]} Qa6 {[%emt 0:01:30]} 9. b3 {[%emt 0:04:30]} b5 {[%emt 0:00:30]} 10. Nd2 {[%emt 0:39:30] And now cxb5 would win.} Bb7 {[%emt 0:01:30] E62: King's Indian: Fianchetto: 6...c6 and Panno Variation (6...Nc6) without ...a6.} 11. Bb2 {[%emt 0:00:30]} Nbd7 {[%emt 0:01:30]} 12. Qc2 {[%emt 0:02:30] [#]} Rfc8 $146 {[%emt 0:11:30] The position is equal.} ({Predecessor:} 12... bxc4 13. Nxc4 Nb6 14. Nd2 Nbd5 15. a3 Nxc3 16. Qxc3 Nd5 17. Qc4 Qb6 18. Qc2 a5 {½-½ (39) Toloza Soto,P (2347)-Egger Mancilla,J (2421) Chile 2000}) 13. Kh2 {[%emt 0:07:30]} bxc4 {[%emt 0:15:30]} 14. bxc4 {[%emt 0:01:30]} Nb6 {[%emt 0:05:30]} 15. Qb3 {[%emt 0:01:30]} (15. Nd1 $11 {feels stronger.}) 15... Rab8 {[%emt 0:01:30][%cal Ba8b8,Bb8b4,Bb4a4,Ba4a2][%mdl 32]} 16. a4 {[%emt 0:00:30]} (16. Rfc1 $15) 16... Qa5 {[%emt 0:17:30]} (16... c5 $1 $17 17. Nb5 Bxg2 18. Kxg2 Qb7+ 19. d5 Nfxd5 20. cxd5 c4 21. Nxc4 Qxd5+ 22. Qf3 Qxf3+ 23. Kxf3 Rxc4 24. Bxg7 Kxg7 25. Nxa7 Nxa4) 17. Rab1 {[%emt 0:09:30]} Ba6 {[%emt 0:07:30]} 18. Ba1 {[%emt 0:01:30]} c5 {[%emt 0:03:30]} 19. d5 {[%emt 0:03:56] [#]} Nbd7 {[%emt 0:03:30]} (19... Nfd7 $1 $17 {next ...Ne5 is good for Black.} 20. Rfd1 Ne5) 20. Qc2 $11 {[%emt 0:01:52]} Rb4 {[%emt 0:01:30]} 21. Nb5 {[%emt 0:00:51]} Qxa4 {[%emt 0:08:30]} (21... Rxa4 22. Nxa7 Ra2 23. Rb2 $11) 22. Qxa4 {[%emt 0:01:34]} Rxa4 {[%emt 0:00:30]} 23. Nxa7 {[%emt 0:00:10]} Re8 {[%emt 0:07:30]} 24. Nb5 {[%emt 0:04:34]} (24. Nc6 $1 $11) 24... Bxb5 {[%emt 0:00:30]} 25. Rxb5 {[%emt 0:01:38]} Ra2 {[%emt 0:00:30]} 26. Rd1 {[%emt 0:02:41]} Ng4+ {[%emt 0:03:30]} 27. hxg4 {[%emt 0:00:10] Black must now prevent Bxg7.} Bxa1 {[%emt 0:00:04]} 28. Rb3 {[%emt 0:01:47]} Rb8 {[%emt 0:03:36]} 29. Rxb8+ {[%emt 0:01:37]} Nxb8 {[%emt 0:01:19]} 30. Bf1 {[%emt 0:03:41]} Nd7 {[%emt 0:01:07]} 31. f4 {[%emt 0:00:10]} (31. g5 $142) 31... Nf6 $17 {[%emt 0:03:00]} 32. Kh3 {[%emt 0:00:09]} Bc3 {[%emt 0:00:06] Inhibits g5.} 33. g5 {[%emt 0:00:20]} Bxd2 {[%emt 0:04:50] Black is more active.} ({Stronger than} 33... Rxd2 34. Rxd2 Bxd2 35. gxf6 exf6 36. e4 $15) 34. gxf6 {[%emt 0:00:06]} exf6 {[%emt 0:00:02][%mdl 4096] Endgame KRB-KRB} 35. Kg2 {[%emt 0:02:04]} h5 {[%emt 0:02:20]} 36. Rb1 {[%emt 0:01:25]} Bb4 {[%emt 0:00:36]} 37. Kf3 {[%emt 0:01:07]} f5 {[%emt 0:00:18]} (37... g5 $142 38. g4 Ra3+ 39. e3 Bd2 40. gxh5 Rxe3+ 41. Kg2 Rc3) 38. e3 {[%emt 0:00:35]} Ra3 {[%emt 0:03:03]} 39. Rd1 {[%emt 0:00:22]} Kf8 {[%emt 0:00:49]} 40. Bd3 {[%emt 0:00:26]} Ke7 {[%emt 0:00:00]} 41. Ke2 {[%emt 0:09:15]} Ra2+ {[%emt 0:02:20]} 42. Kf3 {[%emt 0:00:30]} Kd8 {[%emt 0:00:30]} 43. Rc1 {[%emt 0:03:30]} Kc7 {[%emt 0:01:30]} 44. Rc2 {[%emt 0:00:30]} Ra3 {[%emt 0:03:30]} 45. Bf1 {[%emt 0:00:30]} Bc3 {[%emt 0:02:30]} 46. Kf2 {[%emt 0:00:30]} (46. Bd3 $142) 46... Kb6 {[%emt 0:01:30]} 47. Re2 {[%emt 0:00:30]} Kc7 $2 {[%emt 0:15:30]} ({Better is} 47... Ka5 $17 {Threatens to win with ...Kb4.} 48. e4 Bd4+ 49. Kg2 fxe4 50. Rxe4 Kb4) 48. Kg2 {[%emt 0:03:30]} (48. Rc2 $1 $11 {was the only way to keep the balance.}) 48... Bf6 {[%emt 0:02:30]} 49. Kf3 {[%emt 0:04:30]} g5 {[%emt 0:07:30]} (49... Kb6 $17 50. Rd2 Ra4) 50. fxg5 $15 {[%emt 0:00:30]} Bxg5 {[%emt 0:00:30]} 51. Bh3 {[%emt 0:04:30] Black converts the advantage convincingly.} (51. Rh2 $1 $15) 51... Rc3 $17 {[%emt 0:00:30]} 52. Bxf5 {[%emt 0:00:00]} Rxc4 {[%emt 0:00:00]} 53. Rh2 {[%emt 0:00:00]} Rc3 {[%emt 0:03:01]} 54. Rxh5 {[%emt 0:00:30]} Bxe3 {[%emt 0:00:15]} ({Don't play} 54... Rxe3+ 55. Kf2 $16) 55. Rh7 {[%emt 0:01:30]} Bd4+ {[%emt 0:00:22]} 56. Ke4 {[%emt 0:01:30]} (56. Kg2 $17) 56... Rxg3 {[%emt 0:01:11]} 57. Rxf7+ {[%emt 0:00:30]} (57. Rh3 $142 Rg1 58. Rf3) 57... Kb6 $19 {[%emt 0:00:08]} 58. Rd7 {[%emt 0:00:30] [#]} Be5 {[%emt 0:00:10]} 59. Rd8 {[%emt 0:00:30]} Kb5 {[%emt 0:02:42]} 60. Rb8+ {[%emt 0:07:59]} Kc4 {[%emt 0:00:50]} 61. Bc8 {[%emt 0:00:12]} Rg1 {[%emt 0:02:22]} 62. Ba6+ {[%emt 0:00:22]} Kc3 {[%emt 0:00:02]} 63. Rc8 {[%emt 0:06:53]} Re1+ {[%emt 0:00:33]} 64. Kf5 {[%emt 0:01:10]} Kd4 {[%emt 0:00:07]} 65. Bb7 $2 {[%emt 0:01:42]} (65. Rg8) 65... Rf1+ {[%emt 0:00:16] Black is clearly winning.} 66. Ke6 {[%emt 0:00:16]} Rf6+ {[%emt 0:00:33]} 67. Ke7 {[%emt 0:00:24]} Rh6 {[%emt 0:00:58] Hoping for ...Rh7+.} 68. Kd7 {[%emt 0:00:22]} (68. Bc6 $142) 68... c4 {[%emt 0:00:26][%cal Bc5c4,Bc4c3,Bc3c2][%mdl 32] aiming for ...Rh7+.} 69. Ba6 {[%emt 0:00:06]} c3 {[%emt 0:00:15]} ({Worse is} 69... Kxd5 70. Bxc4+ Ke4 71. Rc6 $11) 70. Bc4 {[%emt 0:01:14]} Rh1 {[%emt 0:03:34]} 71. Ke6 {[%emt 0:00:24]} c2 {[%emt 0:00:28] Weighted Error Value: White=0.22 (precise) /Black=0.15 (very precise)} 0-1

[Event "German Bundesliga 2022-23"]
[Site "Germany"]
[Date "2022.11.27"]
[Round "4.1"]
[White "McShane, Luke J"]
[Black "Kadric, Denis"]
[Result "1/2-1/2"]
[ECO "C42"]
[WhiteElo "2637"]
[BlackElo "2582"]
[Annotator "TA"]
[PlyCount "81"]
[EventDate "2022.10.21"]
[EventType "team-tourn"]
[EventCountry "GER"]
[SourceTitle "playchess.com"]
[Source "ChessBase"]
[SourceQuality "1"]
[TimeControl "40/6000+30:3000+30"]

{[%evp 9,81,7,15,16,6,0,0,-8,11,0,15,0,0,-6,-2,-9,-5,-29,0,0,0,0,0,-12,-12,0,0,-14,-11,-48,24,18,33,33,33,33,33,43,35,33,47,35,35,37,35,35,55,16,30,22,46,29,25,20,38,0,0,0,27,7,12,10,16,0,3,0,0,0,0,0,0,0,2,-61]} 1. e4 {[%emt 0:00:06]} e5 {[%emt 0:00:04]} 2. Nf3 {[%emt 0:00:05]} Nf6 {[%emt 0:00:05]} 3. Nxe5 {[%emt 0:00:07][%cal Bf3e5,Be5d3,Bd3f4][%mdl 32]} d6 {[%emt 0:00:04]} 4. Nd3 {[%emt 0:00:06]} Nxe4 {[%emt 0:00:09]} 5. Qe2 {[%emt 0:00:05]} Qe7 {[%emt 0:00:05]} 6. Nf4 {[%emt 0:00:05] [#] Hoping for Nd5. C42: Petroff Defence: 3 Nxe5 and unusual White 3rd moves.} Nc6 {[%emt 0:00:08] Strongly threatening ...Nd4.} 7. c3 {[%emt 0:00:10] Against Nd4. aiming for Nd5.} Nf6 {[%emt 0:00:05] Inhibits Nd5.} 8. d4 {[%emt 0:00:12]} g6 {[%emt 0:00:03]} 9. h4 {[%emt 0:07:29]} h5 {[%emt 0:00:29]} 10. Na3 {[%emt 0:01:10] [#]} Bg7 $146 {[%emt 0:03:06]} ({Predecessor:} 10... a6 11. Nc4 Bg7 12. f3 O-O 13. Qxe7 Nxe7 14. Kf2 b5 15. Ne3 c5 16. dxc5 dxc5 {½-½ (44) Nepomniachtchi,I (2773)-Wei,Y (2736) Abidjan 2019}) 11. Nc4 {[%emt 0:11:46]} O-O {[%emt 0:03:38]} 12. Qxe7 {[%emt 0:00:11]} Nxe7 {[%emt 0:00:02]} 13. a4 {[%emt 0:00:15]} Bd7 {[%emt 0:05:52]} 14. f3 {[%emt 0:01:29]} b6 {[%emt 0:09:42][%cal Bb7b6,Bb6b5][%mdl 32]} 15. Kf2 {[%emt 0:03:47]} a6 {[%emt 0:00:48]} 16. Be2 {[%emt 0:01:45]} b5 {[%emt 0:04:27]} 17. Ne3 {[%emt 0:00:08][%cal Bc4e3,Be3c2,Bc2b4][%mdl 32]} Rfb8 {[%emt 0:16:55]} 18. Rd1 {[%emt 0:08:42]} Bh6 {[%emt 0:14:23]} 19. Nc2 {[%emt 0:08:48][%cal Of4h5]} Kg7 {[%emt 0:09:58]} (19... bxa4 $15 20. Nxg6 Nxg6 21. Bxh6 Rxb2) 20. a5 $11 {[%emt 0:03:09]} Bf5 {[%emt 0:05:43]} 21. Nb4 {[%emt 0:09:43]} Bxf4 {[%emt 0:04:02]} 22. Bxf4 {[%emt 0:00:06]} Nfd5 {[%emt 0:00:01]} 23. Nxd5 {[%emt 0:00:57]} Nxd5 {[%emt 0:00:02]} 24. Bd2 {[%emt 0:00:30]} Be6 {[%emt 0:10:17]} 25. Bd3 {[%emt 0:17:37]} Nf6 {[%emt 0:03:47]} 26. Rdb1 {[%emt 0:03:54]} Re8 {[%emt 0:06:23]} 27. b3 {[%emt 0:01:13]} Rab8 {[%emt 0:01:35]} 28. Bc2 {[%emt 0:01:46]} Bf5 {[%emt 0:03:26]} 29. Bxf5 {[%emt 0:00:06]} gxf5 {[%emt 0:00:02]} 30. Re1 {[%emt 0:00:30]} Re6 {[%emt 0:02:58]} 31. Rac1 {[%emt 0:08:16]} Kg6 {[%emt 0:01:04]} 32. Rc2 {[%emt 0:05:07]} Nd5 {[%emt 0:01:22]} 33. Rcc1 {[%emt 0:07:15]} Nf6 {[%emt 0:02:10]} 34. Kg3 {[%emt 0:02:51]} Rb7 {[%emt 0:01:36] The position is equal.} 35. Bg5 {[%emt 0:03:32]} Rb8 {[%emt 0:00:12]} 36. Bxf6 {[%emt 0:03:52]} Kxf6 {[%emt 0:00:04]} 37. Kf2 {[%emt 0:00:29]} Rbe8 {[%emt 0:01:53]} 38. Rxe6+ {[%emt 0:00:27]} fxe6 {[%emt 0:00:22]} 39. c4 {[%emt 0:00:30] [#] Black must now prevent cxb5.} Rb8 {[%emt 0:01:05]} 40. c5 {[%emt 0:01:18] cxd6 is the strong threat.} d5 {[%emt 0:00:27]} 41. f4 {[%emt 0:08:30] Prevents e5.   Weighted Error Value: White=0.09 (flawless) /Black=0.08 (flawless)} (41. Re1 $11) 1/2-1/2

[Event "German Bundesliga 2022-23"]
[Site "Germany"]
[Date "2022.11.27"]
[Round "4.2"]
[White "Ivanisevic, Ivan"]
[Black "Areshchenko, Alexander"]
[Result "1/2-1/2"]
[ECO "A04"]
[WhiteElo "2533"]
[BlackElo "2632"]
[Annotator "TA"]
[PlyCount "110"]
[EventDate "2022.10.21"]
[EventType "team-tourn"]
[EventCountry "GER"]
[SourceTitle "playchess.com"]
[Source "ChessBase"]
[SourceQuality "1"]
[TimeControl "40/6000+30:3000+30"]

{[%evp 11,110,18,28,22,25,12,14,4,19,14,14,13,18,0,10,12,10,-7,0,-9,6,6,4,6,0,15,54,68,73,66,95,62,62,67,75,75,98,92,102,102,107,117,114,102,104,105,118,122,122,120,121,110,110,114,117,117,122,120,121,122,135,128,133,124,142,134,175,182,174,164,183,185,232,232,245,233,251,252,245,254,264,263,292,287,310,306,398,291,320,312,522,496,487,366,313,0,482,477,446,0,253]} 1. Nf3 {[%emt 0:00:07]} c5 {[%emt 0:00:17]} 2. b3 {[%emt 0:00:07]} d5 {[%emt 0:05:52]} 3. e3 {[%emt 0:00:18]} Nf6 {[%emt 0:00:50]} 4. Bb2 {[%emt 0:00:08]} e6 {[%emt 0:00:45]} 5. c4 {[%emt 0:05:37]} Be7 {[%emt 0:01:46]} 6. cxd5 {[%emt 0:00:43]} exd5 {[%emt 0:01:07]} 7. Bb5+ {[%emt 0:00:50] A13: English Opening: 1...e6.} Nbd7 {[%emt 0:04:45]} 8. O-O {[%emt 0:00:09]} a6 {[%emt 0:01:36]} 9. Be2 {[%emt 0:02:44]} O-O {[%emt 0:01:18]} 10. d4 {[%emt 0:00:54]} b6 {[%emt 0:01:45]} 11. Nc3 {[%emt 0:00:32]} Bb7 {[%emt 0:00:33]} 12. Rc1 {[%emt 0:02:31]} Rc8 {[%emt 0:15:58]} 13. dxc5 {[%emt 0:02:48]} bxc5 {[%emt 0:01:38] [#]} 14. Rc2 $146 {[%emt 0:00:41]} ({Predecessor:} 14. Bd3 Qa5 15. Bf5 Rfd8 16. Qe2 g6 17. Bh3 Rc7 18. Rfd1 Nb6 19. a3 Nbd7 20. Nd2 {1-0 (60) Mabrouk,F (2036)-Moussa,A (1805) Sousse 2021}) 14... Re8 {[%emt 0:04:14]} 15. Rd2 {[%emt 0:02:49]} Bd6 {[%emt 0:16:22]} 16. Nxd5 {[%emt 0:10:56]} Nxd5 {[%emt 0:03:44]} 17. Rxd5 {[%emt 0:00:20]} Bxd5 {[%emt 0:00:09]} 18. Qxd5 {[%emt 0:00:05]} Nb6 {[%emt 0:14:07]} (18... Be5 {simplifies} 19. Bc1 Nb8 20. Qxd8 Rcxd8 21. Bd2 Bb2) 19. Qf5 {[%emt 0:01:17]} Qd7 {[%emt 0:05:18]} 20. Qc2 {[%emt 0:15:06]} h6 {[%emt 0:06:13] Prevents Ng5.} 21. Bxa6 {[%emt 0:26:24]} Ra8 {[%emt 0:01:59]} 22. Bd3 {[%emt 0:00:43][%cal Ba6d3,Bd3h7,Bh7f5][%mdl 32]} Rxa2 {[%emt 0:04:48]} 23. Bh7+ {[%emt 0:00:53] This pair of bishops is nice.} ({Of course not} 23. Qc3 Rxb2 $1 24. Qxb2 Bxh2+ $1 25. Kxh2 Qxd3 $11) 23... Kh8 {[%emt 0:00:45][%cal Oa2b2]} 24. Bf5 {[%emt 0:00:29] Chess con chili.} Qa7 {[%emt 0:01:29]} 25. Qc3 {[%emt 0:00:39][%csl Gb2][%cal Rc3g7]} (25. Qd2 {feels hotter.} Kg8 26. Qc3 Bf8 27. Bb1) 25... Rxb2 {[%emt 0:07:21]} 26. Qxb2 {[%emt 0:00:07]} Qe7 {[%emt 0:02:47]} 27. Qc2 {[%emt 0:06:18]} Qf6 {[%emt 0:01:02]} 28. Rd1 {[%emt 0:02:45]} Ra8 {[%emt 0:00:28]} 29. g3 {[%emt 0:00:31]} g6 {[%emt 0:01:16]} 30. Be4 {[%emt 0:00:23]} Ra1 {[%emt 0:00:08]} 31. Rxa1 {[%emt 0:00:44]} Qxa1+ {[%emt 0:00:03]} 32. Kg2 {[%emt 0:00:07][%cal Oe4g6] And now Bxg6! would win.} Kg7 {[%emt 0:00:27]} 33. Qd3 {[%emt 0:03:24]} Qf6 {[%emt 0:01:50]} 34. Qb5 {[%emt 0:00:07]} Bf8 {[%emt 0:00:35]} 35. Bc6 {[%emt 0:03:51]} Nc8 {[%emt 0:00:21] aiming for ...Na7.} 36. Bd5 {[%emt 0:00:47]} Qd8 {[%emt 0:04:10]} 37. Bc4 {[%emt 0:02:39] White has more active pieces.} Qc7 {[%emt 0:00:07]} 38. Qe8 {[%emt 0:00:22]} Nd6 {[%emt 0:00:41]} 39. Qe5+ {[%emt 0:00:06]} Kg8 {[%emt 0:00:33]} 40. h4 {[%emt 0:00:52]} Bg7 {[%emt 0:00:25]} 41. Qd5 {[%emt 0:51:27]} h5 {[%emt 0:50:53] [#]} (41... Nxc4 {is a better defense.} 42. bxc4 Bc3) 42. Bd3 $1 $18 {[%emt 0:08:15]} Kf8 {[%emt 0:00:00]} 43. e4 {[%emt 0:00:00][%cal Be3e4,Be4e5][%mdl 32] e5 is the strong threat.} Nb7 {[%emt 0:00:00]} 44. e5 {[%emt 0:00:00] Black must now prevent e6.} Nd8 {[%emt 0:00:00] Inhibits e6.} 45. Bc4 {[%emt 0:00:00]} Ke7 {[%emt 0:00:00]} 46. Qe4 {[%emt 0:00:00]} Bh6 {[%emt 0:00:00]} 47. Ne1 {[%emt 0:00:00]} Bd2 {[%emt 0:00:00] [#]} 48. Nd3 {[%emt 0:00:00]} Bc3 {[%emt 0:00:00]} 49. f4 {[%emt 0:00:00][%cal Bf2f4,Bf4f5,Bf5f6][%mdl 32]} Bd4 {[%emt 0:00:00]} 50. f5 {[%emt 0:00:00]} Qc6 {[%emt 0:00:00]} (50... gxf5 51. Qxf5 Qc6+ 52. Kh2 Qg6) 51. f6+ {[%emt 0:00:00]} Kf8 {[%emt 0:00:00]} 52. Kf3 {[%emt 0:00:00]} Qc8 {[%emt 0:00:00]} 53. Kg2 {[%emt 0:00:00] Against Qh3+} (53. Nf4 $142) 53... Qc6 $1 {[%emt 0:00:00]} 54. Bd5 {[%emt 0:00:00]} Qa6 {[%emt 0:00:00]} 55. Bc4 {[%emt 0:08:14]} (55. Nf4 $142) 55... Qc6 {[%mdl 32768] Weighted Error Value: White=0.26 (precise) /Black=0.17 (very precise) . An unexpected result.} 1/2-1/2